[Event "Titled Tuesday Blitz November 9 2021"]
[White "Khusnutdinov, Rustam"]
[Black "Guseva, Marina"]
[WhiteFideId "13701703"]
[BlackFideId "4149351"]
[WhiteElo "2571"]
[BlackElo "2279"]
[Result "1-0"]
[Round "01"]
[TimeControl "180+1"]
[Date "2021.11.09"]
[WhiteClock "0:00:33"]
[BlackClock "0:00:02"]

1. e4 {[%clk 0:02:54]}  c5 {[%clk 0:02:59]} 2. Nf3 {[%clk 0:02:51]}  d6 {[%clk 0:02:58]} 3. Bb5+ {[%clk 0:02:51]}  Nd7 {[%clk 0:02:58]} 4. Ba4 {[%clk 0:02:48]}  Nf6 {[%clk 0:02:55]} 5. O-O {[%clk 0:02:43]}  a6 {[%clk 0:02:53]} 6. c4 {[%clk 0:02:38]}  g6 {[%clk 0:02:50]} 7. Nc3 {[%clk 0:02:30]}  Bg7 {[%clk 0:02:49]} 8. d3 {[%clk 0:02:24]}  O-O {[%clk 0:02:48]} 9. h3 {[%clk 0:02:24]}  Ne5 {[%clk 0:02:40]} 10. Nh2 {[%clk 0:02:19]}  Bd7 {[%clk 0:02:29]} 11. f4 {[%clk 0:02:08]}  Bxa4 {[%clk 0:02:25]} 12. Nxa4 {[%clk 0:02:09]}  Nc6 {[%clk 0:02:24]} 13. Nc3 {[%clk 0:02:07]}  e6 {[%clk 0:02:23]} 14. f5 {[%clk 0:02:03]}  exf5 {[%clk 0:02:17]} 15. exf5 {[%clk 0:02:02]}  d5 {[%clk 0:02:17]} 16. Bg5 {[%clk 0:01:59]}  dxc4 {[%clk 0:02:16]} 17. dxc4 {[%clk 0:02:00]}  Qd4+ {[%clk 0:02:15]} 18. Qxd4 {[%clk 0:01:56]}  Nxd4 {[%clk 0:02:13]} 19. Bxf6 {[%clk 0:01:40]}  Bxf6 {[%clk 0:02:12]} 20. Ng4 {[%clk 0:01:41]}  Bg5 {[%clk 0:01:43]} 21. fxg6 {[%clk 0:01:23]}  fxg6 {[%clk 0:01:35]} 22. Ne4 {[%clk 0:01:20]}  Be7 {[%clk 0:00:39]} 23. Rae1 {[%clk 0:01:18]}  Rxf1+ {[%clk 0:00:38]} 24. Rxf1 {[%clk 0:01:15]}  Kg7 {[%clk 0:00:35]} 25. Ne5 {[%clk 0:01:08]}  Rf8 {[%clk 0:00:25]} 26. Rxf8 {[%clk 0:01:06]}  Bxf8 {[%clk 0:00:25]} 27. Nd7 {[%clk 0:01:07]}  Ne6 {[%clk 0:00:21]} 28. Kf2 {[%clk 0:01:01]}  Be7 {[%clk 0:00:20]} 29. Ke3 {[%clk 0:00:58]}  Kf7 {[%clk 0:00:20]} 30. Nc3 {[%clk 0:00:54]}  Ke8 {[%clk 0:00:18]} 31. Ne5 {[%clk 0:00:52]}  Bd6 {[%clk 0:00:17]} 32. Ke4 {[%clk 0:00:52]}  Nd4 {[%clk 0:00:13]} 33. Kd5 {[%clk 0:00:51]}  Bxe5 {[%clk 0:00:12]} 34. Kxe5 {[%clk 0:00:50]}  Kd7 {[%clk 0:00:11]} 35. Ne4 {[%clk 0:00:49]}  Kc6 {[%clk 0:00:10]} 36. Nf6 {[%clk 0:00:48]}  h5 {[%clk 0:00:09]} 37. Nd5 {[%clk 0:00:48]}  b5 {[%clk 0:00:07]} 38. cxb5+ {[%clk 0:00:45]}  axb5 {[%clk 0:00:05]} 39. Ne7+ {[%clk 0:00:45]}  Kb6 {[%clk 0:00:04]} 40. Nxg6 {[%clk 0:00:46]}  Nc2 {[%clk 0:00:04]} 41. Nf4 {[%clk 0:00:44]}  h4 {[%clk 0:00:03]} 42. Ke4 {[%clk 0:00:35]}  Ne1 {[%clk 0:00:02]} 43. Ke3 {[%clk 0:00:34]}  c4 {[%clk 0:00:03]} 44. Kd2 {[%clk 0:00:33]}  Nxg2 {[%clk 0:00:02]} 45. Nxg2 {[%clk 0:00:33]} 1-0


[Site "https://www.chess.com"]

[Event "Titled Tuesday Blitz November 9 2021"]
[White "Nakamura, Hikaru"]
[Black "Omariev, Maksim"]
[WhiteFideId "2016192"]
[BlackFideId "4193423"]
[WhiteElo "2884"]
[BlackElo "2488"]
[Result "1-0"]
[Round "01"]
[TimeControl "180+1"]
[Date "2021.11.09"]
[WhiteClock "0:01:33"]
[BlackClock "0:00:10"]

1. Nf3 {[%clk 0:03:00]}  d5 {[%clk 0:02:54]} 2. b3 {[%clk 0:03:00]}  c6 {[%clk 0:02:54]} 3. Bb2 {[%clk 0:02:59]}  Nf6 {[%clk 0:02:55]} 4. e3 {[%clk 0:03:00]}  Bf5 {[%clk 0:02:55]} 5. d4 {[%clk 0:03:00]}  e6 {[%clk 0:02:56]} 6. Bd3 {[%clk 0:03:00]}  Ne4 {[%clk 0:02:53]} 7. O-O {[%clk 0:02:59]}  Nd7 {[%clk 0:02:53]} 8. c4 {[%clk 0:02:59]}  Bd6 {[%clk 0:02:53]} 9. Qc2 {[%clk 0:02:59]}  Bg6 {[%clk 0:02:21]} 10. Nbd2 {[%clk 0:02:44]}  f5 {[%clk 0:02:16]} 11. a4 {[%clk 0:02:39]}  Qe7 {[%clk 0:02:07]} 12. Ne5 {[%clk 0:02:36]}  O-O {[%clk 0:01:54]} 13. Ndf3 {[%clk 0:02:28]}  Bh5 {[%clk 0:01:50]} 14. Be2 {[%clk 0:02:16]}  Rf6 {[%clk 0:01:39]} 15. Ne1 {[%clk 0:02:09]}  Bxe2 {[%clk 0:01:25]} 16. Qxe2 {[%clk 0:02:10]}  Rh6 {[%clk 0:01:25]} 17. N1d3 {[%clk 0:02:04]}  Qh4 {[%clk 0:01:13]} 18. h3 {[%clk 0:02:04]}  Ndf6 {[%clk 0:01:09]} 19. Nf4 {[%clk 0:02:03]}  Bxe5 {[%clk 0:00:33]} 20. dxe5 {[%clk 0:02:04]}  Nd7 {[%clk 0:00:25]} 21. g3 {[%clk 0:01:53]}  Nxg3 {[%clk 0:00:19]} 22. fxg3 {[%clk 0:01:53]}  Qxg3+ {[%clk 0:00:20]} 23. Qg2 {[%clk 0:01:51]}  Qxe3+ {[%clk 0:00:20]} 24. Kh1 {[%clk 0:01:49]}  Qxb3 {[%clk 0:00:20]} 25. cxd5 {[%clk 0:01:47]}  cxd5 {[%clk 0:00:18]} 26. Ra3 {[%clk 0:01:44]}  Qc4 {[%clk 0:00:14]} 27. Rg3 {[%clk 0:01:42]}  g6 {[%clk 0:00:05]} 28. Nxe6 {[%clk 0:01:42]}  Re8 {[%clk 0:00:04]} 29. Rc1 {[%clk 0:01:34]}  Qe4 {[%clk 0:00:03]} 30. Ng5 {[%clk 0:01:33]}  Qxg2+ {[%clk 0:00:03]} 31. Kxg2 {[%clk 0:01:34]}  Nxe5 {[%clk 0:00:03]} 32. Re1 {[%clk 0:01:33]}  Rh5 {[%clk 0:00:03]} 33. Rxe5 {[%clk 0:01:31]}  Rxe5 {[%clk 0:00:03]} 34. Bxe5 {[%clk 0:01:32]}  h6 {[%clk 0:00:04]} 35. Ne6 {[%clk 0:01:32]}  g5 {[%clk 0:00:04]} 36. Ng7 {[%clk 0:01:30]}  f4 {[%clk 0:00:05]} 37. Nxh5 {[%clk 0:01:30]}  fxg3 {[%clk 0:00:05]} 38. Bd4 {[%clk 0:01:31]}  Kf7 {[%clk 0:00:06]} 39. Bxa7 {[%clk 0:01:31]}  Ke6 {[%clk 0:00:06]} 40. Nxg3 {[%clk 0:01:31]}  Kf6 {[%clk 0:00:06]} 41. Bd4+ {[%clk 0:01:31]}  Kg6 {[%clk 0:00:07]} 42. Kf3 {[%clk 0:01:31]}  h5 {[%clk 0:00:07]} 43. Nf1 {[%clk 0:01:31]}  Kf5 {[%clk 0:00:08]} 44. Ne3+ {[%clk 0:01:32]}  Ke6 {[%clk 0:00:08]} 45. a5 {[%clk 0:01:31]}  g4+ {[%clk 0:00:08]} 46. hxg4 {[%clk 0:01:31]}  hxg4+ {[%clk 0:00:09]} 47. Kxg4 {[%clk 0:01:31]}  Kd6 {[%clk 0:00:10]} 48. Kf5 {[%clk 0:01:32]}  Kc6 {[%clk 0:00:11]} 49. Ke5 {[%clk 0:01:33]}  Kb5 {[%clk 0:00:10]} 50. Bb6 {[%clk 0:01:32]}  d4 {[%clk 0:00:10]} 51. Kxd4 {[%clk 0:01:32]}  Ka6 {[%clk 0:00:10]} 52. Kd5 {[%clk 0:01:32]}  Kb5 {[%clk 0:00:10]} 53. Kd6 {[%clk 0:01:33]}  Ka6 {[%clk 0:00:10]} 54. Kc7 {[%clk 0:01:33]} 1-0


[Site "https://www.chess.com"]

[Event "Titled Tuesday Blitz November 9 2021"]
[White "Obrien, Matthew"]
[Black "Bortnyk, Mykola"]
[WhiteFideId "2059150"]
[BlackFideId "14120836"]
[WhiteElo "2480"]
[BlackElo "2582"]
[Result "0-1"]
[Round "01"]
[TimeControl "180+1"]
[Date "2021.11.09"]
[WhiteClock "0:00:01"]
[BlackClock "0:00:44"]

1. e4 {[%clk 0:03:00]}  c5 {[%clk 0:02:59]} 2. Nf3 {[%clk 0:02:59]}  d6 {[%clk 0:02:59]} 3. d4 {[%clk 0:02:59]}  cxd4 {[%clk 0:02:59]} 4. Nxd4 {[%clk 0:02:59]}  Nf6 {[%clk 0:03:00]} 5. Nc3 {[%clk 0:02:59]}  g6 {[%clk 0:03:00]} 6. Be3 {[%clk 0:02:58]}  Bg7 {[%clk 0:03:01]} 7. f3 {[%clk 0:02:58]}  a6 {[%clk 0:03:01]} 8. Qd2 {[%clk 0:02:57]}  h5 {[%clk 0:02:59]} 9. Bc4 {[%clk 0:02:52]}  b5 {[%clk 0:02:59]} 10. Bd5 {[%clk 0:02:46]}  Nxd5 {[%clk 0:02:55]} 11. Nxd5 {[%clk 0:02:40]}  Bb7 {[%clk 0:02:48]} 12. a4 {[%clk 0:02:31]}  bxa4 {[%clk 0:02:33]} 13. Qb4 {[%clk 0:02:17]}  Bxd5 {[%clk 0:02:27]} 14. exd5 {[%clk 0:02:17]}  O-O {[%clk 0:02:25]} 15. O-O {[%clk 0:02:09]}  Nd7 {[%clk 0:02:06]} 16. Nc6 {[%clk 0:02:07]}  Qe8 {[%clk 0:02:05]} 17. Bd4 {[%clk 0:01:58]}  Bxd4+ {[%clk 0:01:55]} 18. Qxd4 {[%clk 0:01:56]}  Nb8 {[%clk 0:01:54]} 19. Qxa4 {[%clk 0:01:04]}  Nxc6 {[%clk 0:01:53]} 20. dxc6 {[%clk 0:01:05]}  Rc8 {[%clk 0:01:45]} 21. Qxa6 {[%clk 0:00:56]}  Rxc6 {[%clk 0:01:38]} 22. Qe2 {[%clk 0:00:50]}  Qb8 {[%clk 0:01:36]} 23. c3 {[%clk 0:00:47]}  e6 {[%clk 0:01:35]} 24. Rfb1 {[%clk 0:00:42]}  Qb3 {[%clk 0:01:29]} 25. Ra3 {[%clk 0:00:40]}  Qb6+ {[%clk 0:01:27]} 26. Qf2 {[%clk 0:00:37]}  Qb5 {[%clk 0:01:27]} 27. Qd4 {[%clk 0:00:31]}  Rb8 {[%clk 0:01:22]} 28. Ra7 {[%clk 0:00:27]}  Qf5 {[%clk 0:01:10]} 29. Rba1 {[%clk 0:00:16]}  Rcc8 {[%clk 0:00:55]} 30. Qxd6 {[%clk 0:00:13]}  Rxb2 {[%clk 0:00:55]} 31. h3 {[%clk 0:00:10]}  Qg5 {[%clk 0:00:51]} 32. Qh2 {[%clk 0:00:02]}  Rxc3 {[%clk 0:00:48]} 33. Ra8+ {[%clk 0:00:02]}  Kh7 {[%clk 0:00:49]} 34. Kh1 {[%clk 0:00:01]}  Rcc2 {[%clk 0:00:44]} 0-1


[Site "https://www.chess.com"]

[Event "Titled Tuesday Blitz November 9 2021"]
[White "Pajeken, Jakob Leon"]
[Black "Jobava, Baadur"]
[WhiteFideId "12942839"]
[BlackFideId "13601520"]
[WhiteElo "2351"]
[BlackElo "2731"]
[Result "0-1"]
[Round "01"]
[TimeControl "180+1"]
[Date "2021.11.09"]
[WhiteClock "0:00:02"]
[BlackClock "0:01:16"]

1. d4 {[%clk 0:03:00]}  Nf6 {[%clk 0:02:58]} 2. Nf3 {[%clk 0:02:59]}  c5 {[%clk 0:02:59]} 3. d5 {[%clk 0:02:58]}  b5 {[%clk 0:02:59]} 4. Bg5 {[%clk 0:02:58]}  Bb7 {[%clk 0:02:58]} 5. a4 {[%clk 0:02:57]}  b4 {[%clk 0:02:57]} 6. Bxf6 {[%clk 0:02:56]}  gxf6 {[%clk 0:02:58]} 7. e4 {[%clk 0:02:56]}  d6 {[%clk 0:02:56]} 8. Nbd2 {[%clk 0:02:50]}  Nd7 {[%clk 0:02:56]} 9. Nc4 {[%clk 0:02:43]}  Bg7 {[%clk 0:02:55]} 10. Nh4 {[%clk 0:02:40]}  O-O {[%clk 0:02:51]} 11. Nf5 {[%clk 0:02:40]}  Kh8 {[%clk 0:02:51]} 12. Bd3 {[%clk 0:02:23]}  Rg8 {[%clk 0:02:49]} 13. Qh5 {[%clk 0:02:19]}  Bf8 {[%clk 0:02:47]} 14. h4 {[%clk 0:02:09]}  Rg6 {[%clk 0:02:44]} 15. f4 {[%clk 0:02:05]}  Nb6 {[%clk 0:02:33]} 16. Nxb6 {[%clk 0:02:02]}  axb6 {[%clk 0:02:31]} 17. Rh3 {[%clk 0:01:57]}  e6 {[%clk 0:02:30]} 18. Ne3 {[%clk 0:01:53]}  Qe7 {[%clk 0:02:22]} 19. e5 {[%clk 0:01:47]}  Rh6 {[%clk 0:02:21]} 20. exd6 {[%clk 0:01:35]}  Rxh5 {[%clk 0:02:15]} 21. dxe7 {[%clk 0:01:34]}  Bxe7 {[%clk 0:02:16]} 22. g4 {[%clk 0:01:29]}  Rxd5 {[%clk 0:02:13]} 23. Nxd5 {[%clk 0:01:24]}  exd5 {[%clk 0:02:12]} 24. b3 {[%clk 0:01:20]}  Bd6 {[%clk 0:02:11]} 25. f5 {[%clk 0:01:17]}  Re8+ {[%clk 0:02:08]} 26. Kf2 {[%clk 0:01:14]}  Kg7 {[%clk 0:02:03]} 27. Re1 {[%clk 0:01:11]}  Be5 {[%clk 0:02:03]} 28. g5 {[%clk 0:01:07]}  Re7 {[%clk 0:01:55]} 29. Kf1 {[%clk 0:00:59]}  Rc7 {[%clk 0:01:49]} 30. h5 {[%clk 0:00:53]}  h6 {[%clk 0:01:45]} 31. g6 {[%clk 0:00:39]}  c4 {[%clk 0:01:44]} 32. Be2 {[%clk 0:00:32]}  Bc8 {[%clk 0:01:37]} 33. Bg4 {[%clk 0:00:29]}  cxb3 {[%clk 0:01:36]} 34. cxb3 {[%clk 0:00:25]}  Rc2 {[%clk 0:01:36]} 35. Kg1 {[%clk 0:00:15]}  d4 {[%clk 0:01:27]} 36. Rf3 {[%clk 0:00:11]}  Bb7 {[%clk 0:01:24]} 37. Rf2 {[%clk 0:00:08]}  d3 {[%clk 0:01:22]} 38. Rxc2 {[%clk 0:00:07]}  dxc2 {[%clk 0:01:23]} 39. Rc1 {[%clk 0:00:06]}  Be4 {[%clk 0:01:23]} 40. Bd1 {[%clk 0:00:02]}  cxd1=Q+ {[%clk 0:01:21]} 41. Rxd1 {[%clk 0:00:03]}  Bxf5 {[%clk 0:01:21]} 42. gxf7 {[%clk 0:00:03]}  Kxf7 {[%clk 0:01:21]} 43. Rd5 {[%clk 0:00:03]}  Be6 {[%clk 0:01:18]} 44. Rb5 {[%clk 0:00:03]}  Bc3 {[%clk 0:01:16]} 45. Rxb6 {[%clk 0:00:02]}  Bd4+ {[%clk 0:01:16]} 0-1


[Site "https://www.chess.com"]

[Event "Titled Tuesday Blitz November 9 2021"]
[White "Sorokin, Aleksey"]
[Black "Shevtchenko, Olesya"]
[WhiteFideId "24176460"]
[BlackFideId "24131890"]
[WhiteElo "2476"]
[BlackElo "2003"]
[Result "1-0"]
[Round "01"]
[TimeControl "180+1"]
[Date "2021.11.09"]
[WhiteClock "0:01:58"]
[BlackClock "0:02:08"]

1. e4 {[%clk 0:03:00]}  c5 {[%clk 0:02:58]} 2. Nf3 {[%clk 0:02:59]}  d6 {[%clk 0:02:59]} 3. d4 {[%clk 0:02:58]}  cxd4 {[%clk 0:02:59]} 4. Nxd4 {[%clk 0:02:59]}  Nf6 {[%clk 0:03:00]} 5. Nc3 {[%clk 0:02:59]}  a6 {[%clk 0:03:00]} 6. Bg5 {[%clk 0:02:58]}  e6 {[%clk 0:02:59]} 7. f4 {[%clk 0:02:58]}  Qb6 {[%clk 0:02:59]} 8. Qd2 {[%clk 0:02:57]}  Qxb2 {[%clk 0:02:59]} 9. Rb1 {[%clk 0:02:57]}  Qa3 {[%clk 0:02:59]} 10. e5 {[%clk 0:02:54]}  dxe5 {[%clk 0:02:59]} 11. fxe5 {[%clk 0:02:53]}  Nfd7 {[%clk 0:03:00]} 12. Be2 {[%clk 0:02:42]}  h6 {[%clk 0:02:58]} 13. Bh4 {[%clk 0:02:39]}  Qa5 {[%clk 0:02:54]} 14. Nxe6 {[%clk 0:02:31]}  Bb4 {[%clk 0:02:27]} 15. Rxb4 {[%clk 0:02:26]}  Qxb4 {[%clk 0:02:27]} 16. Nc7+ {[%clk 0:02:24]}  Kf8 {[%clk 0:02:26]} 17. Bf2 {[%clk 0:02:16]}  Nc6 {[%clk 0:02:13]} 18. Nxa8 {[%clk 0:02:05]}  Ndxe5 {[%clk 0:02:10]} 19. O-O {[%clk 0:02:02]}  Be6 {[%clk 0:02:10]} 20. Nc7 {[%clk 0:02:01]}  Ke7 {[%clk 0:02:08]} 21. N7d5+ {[%clk 0:01:58]} 1-0


[Site "https://www.chess.com"]

[Event "Titled Tuesday Blitz November 9 2021"]
[White "Svane, Rasmus"]
[Black "Viana Da Costa, Fernando"]
[WhiteFideId "4657101"]
[BlackFideId "2111900"]
[WhiteElo "2643"]
[BlackElo "2247"]
[Result "0-1"]
[Round "01"]
[TimeControl "180+1"]
[Date "2021.11.09"]
[WhiteClock "0:00:07"]
[BlackClock "0:00:06"]

1. Nf3 {[%clk 0:03:00]}  Nf6 {[%clk 0:02:58]} 2. g3 {[%clk 0:03:00]}  d5 {[%clk 0:02:58]} 3. Bg2 {[%clk 0:03:00]}  e6 {[%clk 0:02:53]} 4. O-O {[%clk 0:03:00]}  Be7 {[%clk 0:02:54]} 5. c4 {[%clk 0:03:01]}  O-O {[%clk 0:02:54]} 6. b3 {[%clk 0:03:01]}  a5 {[%clk 0:02:53]} 7. Nc3 {[%clk 0:03:01]}  c6 {[%clk 0:02:35]} 8. Bb2 {[%clk 0:03:00]}  Nbd7 {[%clk 0:02:32]} 9. d3 {[%clk 0:02:58]}  b6 {[%clk 0:02:23]} 10. Qc2 {[%clk 0:02:48]}  Bb7 {[%clk 0:02:15]} 11. d4 {[%clk 0:02:47]}  c5 {[%clk 0:02:07]} 12. cxd5 {[%clk 0:02:45]}  Nxd5 {[%clk 0:02:06]} 13. Nxd5 {[%clk 0:02:46]}  Bxd5 {[%clk 0:02:04]} 14. e4 {[%clk 0:02:46]}  Bb7 {[%clk 0:02:04]} 15. d5 {[%clk 0:02:47]}  exd5 {[%clk 0:02:03]} 16. exd5 {[%clk 0:02:48]}  Bf6 {[%clk 0:01:47]} 17. Rad1 {[%clk 0:02:36]}  Re8 {[%clk 0:01:38]} 18. Nd2 {[%clk 0:02:19]}  Bxb2 {[%clk 0:00:56]} 19. Qxb2 {[%clk 0:02:20]}  Ne5 {[%clk 0:00:57]} 20. Rfe1 {[%clk 0:02:02]}  Nd3 {[%clk 0:00:31]} 21. Rxe8+ {[%clk 0:02:02]}  Qxe8 {[%clk 0:00:32]} 22. Qc3 {[%clk 0:02:03]}  Qe2 {[%clk 0:00:32]} 23. Rf1 {[%clk 0:02:04]}  Nb4 {[%clk 0:00:20]} 24. Bf3 {[%clk 0:01:40]}  Qb5 {[%clk 0:00:14]} 25. d6 {[%clk 0:01:38]}  Qd7 {[%clk 0:00:11]} 26. Nc4 {[%clk 0:01:35]}  Bxf3 {[%clk 0:00:05]} 27. Qxf3 {[%clk 0:01:36]}  Rb8 {[%clk 0:00:06]} 28. Rd1 {[%clk 0:01:32]}  Nc6 {[%clk 0:00:05]} 29. a4 {[%clk 0:01:29]}  Nd4 {[%clk 0:00:05]} 30. Qd5 {[%clk 0:01:27]}  g6 {[%clk 0:00:03]} 31. Ne5 {[%clk 0:01:22]}  Qf5 {[%clk 0:00:03]} 32. d7 {[%clk 0:01:07]}  Rd8 {[%clk 0:00:03]} 33. Qd6 {[%clk 0:01:08]}  Qxe5 {[%clk 0:00:02]} 34. Qxb6 {[%clk 0:00:19]}  Rxd7 {[%clk 0:00:03]} 35. Rf1 {[%clk 0:00:20]}  Qd5 {[%clk 0:00:03]} 36. Qb8+ {[%clk 0:00:05]}  Kg7 {[%clk 0:00:02]} 37. Qe8 {[%clk 0:00:06]}  Nf3+ {[%clk 0:00:02]} 38. Kh1 {[%clk 0:00:06]}  Nd2+ {[%clk 0:00:03]} 39. Kg1 {[%clk 0:00:07]}  Nxf1 {[%clk 0:00:03]} 40. Kxf1 {[%clk 0:00:08]}  Qd1+ {[%clk 0:00:03]} 41. Kg2 {[%clk 0:00:08]}  Qd5+ {[%clk 0:00:04]} 42. f3 {[%clk 0:00:08]}  Qe6 {[%clk 0:00:05]} 43. Qa8 {[%clk 0:00:05]}  Rd2+ {[%clk 0:00:05]} 44. Kf1 {[%clk 0:00:06]}  Qe2+ {[%clk 0:00:05]} 45. Kg1 {[%clk 0:00:07]}  Qg2# {[%clk 0:00:06]} 0-1


[Site "https://www.chess.com"]

[Event "Titled Tuesday Blitz November 9 2021"]
[White "Sztokbant, Bernardo Vainzoff"]
[Black "Sjugirov, Sanan"]
[WhiteFideId "2115956"]
[BlackFideId "4189302"]
[WhiteElo "2264"]
[BlackElo "2653"]
[Result "0-1"]
[Round "01"]
[TimeControl "180+1"]
[Date "2021.11.09"]
[WhiteClock "0:00:01"]
[BlackClock "0:00:08"]

1. e4 {[%clk 0:02:59]}  c5 {[%clk 0:02:57]} 2. Nf3 {[%clk 0:02:59]}  Nf6 {[%clk 0:02:57]} 3. Nc3 {[%clk 0:02:59]}  d6 {[%clk 0:02:56]} 4. d4 {[%clk 0:02:59]}  cxd4 {[%clk 0:02:56]} 5. Qxd4 {[%clk 0:03:00]}  a6 {[%clk 0:02:53]} 6. Bg5 {[%clk 0:03:00]}  Nc6 {[%clk 0:02:52]} 7. Qe3 {[%clk 0:03:00]}  Ng4 {[%clk 0:02:47]} 8. Qd2 {[%clk 0:02:57]}  h6 {[%clk 0:02:48]} 9. Bh4 {[%clk 0:02:57]}  g5 {[%clk 0:02:48]} 10. Bg3 {[%clk 0:02:57]}  Bg7 {[%clk 0:02:49]} 11. h3 {[%clk 0:02:58]}  Nge5 {[%clk 0:02:48]} 12. Be2 {[%clk 0:02:58]}  Be6 {[%clk 0:02:40]} 13. Nxe5 {[%clk 0:02:58]}  Nxe5 {[%clk 0:02:40]} 14. Nd5 {[%clk 0:02:57]}  Rc8 {[%clk 0:02:39]} 15. O-O {[%clk 0:02:49]}  Bxd5 {[%clk 0:02:33]} 16. exd5 {[%clk 0:02:50]}  Qb6 {[%clk 0:02:28]} 17. c3 {[%clk 0:02:49]}  O-O {[%clk 0:02:26]} 18. Kh1 {[%clk 0:02:43]}  Ng6 {[%clk 0:01:46]} 19. Bh5 {[%clk 0:02:32]}  Nf4 {[%clk 0:01:44]} 20. Bxf4 {[%clk 0:02:31]}  gxf4 {[%clk 0:01:45]} 21. Rae1 {[%clk 0:02:26]}  Be5 {[%clk 0:01:43]} 22. g3 {[%clk 0:02:03]}  Rc4 {[%clk 0:01:25]} 23. Be2 {[%clk 0:01:41]}  Re4 {[%clk 0:01:22]} 24. Bd3 {[%clk 0:01:21]}  Rxe1 {[%clk 0:01:20]} 25. Rxe1 {[%clk 0:01:22]}  Kh8 {[%clk 0:01:03]} 26. gxf4 {[%clk 0:01:21]}  Bf6 {[%clk 0:01:03]} 27. Rg1 {[%clk 0:01:19]}  Rg8 {[%clk 0:01:00]} 28. Rxg8+ {[%clk 0:01:17]}  Kxg8 {[%clk 0:01:01]} 29. Kg2 {[%clk 0:01:18]}  Kf8 {[%clk 0:00:59]} 30. Be4 {[%clk 0:01:16]}  Qb5 {[%clk 0:00:55]} 31. Bf3 {[%clk 0:01:15]}  Qc4 {[%clk 0:00:52]} 32. a3 {[%clk 0:01:14]}  b5 {[%clk 0:00:47]} 33. Kg3 {[%clk 0:01:14]}  Qa2 {[%clk 0:00:45]} 34. h4 {[%clk 0:01:09]}  Qb1 {[%clk 0:00:44]} 35. Bg2 {[%clk 0:01:05]}  Qg6+ {[%clk 0:00:41]} 36. Kh2 {[%clk 0:01:02]}  Qg4 {[%clk 0:00:37]} 37. Qe3 {[%clk 0:01:01]}  Qxh4+ {[%clk 0:00:35]} 38. Kg1 {[%clk 0:01:01]}  Qg4 {[%clk 0:00:34]} 39. Kh2 {[%clk 0:00:53]}  h5 {[%clk 0:00:32]} 40. Qf3 {[%clk 0:00:48]}  Qg6 {[%clk 0:00:28]} 41. Qe4 {[%clk 0:00:43]}  Qg4 {[%clk 0:00:26]} 42. Qf3 {[%clk 0:00:43]}  Qh4+ {[%clk 0:00:23]} 43. Kg1 {[%clk 0:00:43]}  Bh8 {[%clk 0:00:16]} 44. Kf1 {[%clk 0:00:42]}  Bg7 {[%clk 0:00:13]} 45. Kg1 {[%clk 0:00:42]}  Bh6 {[%clk 0:00:14]} 46. f5 {[%clk 0:00:42]}  Qg5 {[%clk 0:00:13]} 47. Kh2 {[%clk 0:00:38]}  Bg7 {[%clk 0:00:13]} 48. Bh3 {[%clk 0:00:37]}  Be5+ {[%clk 0:00:13]} 49. Kh1 {[%clk 0:00:37]}  Qc1+ {[%clk 0:00:13]} 50. Kg2 {[%clk 0:00:36]}  Qxb2 {[%clk 0:00:12]} 51. Qxh5 {[%clk 0:00:36]}  Qxc3 {[%clk 0:00:12]} 52. Qh6+ {[%clk 0:00:36]}  Bg7 {[%clk 0:00:12]} 53. Qe3 {[%clk 0:00:29]}  Qxe3 {[%clk 0:00:10]} 54. fxe3 {[%clk 0:00:29]}  Bb2 {[%clk 0:00:10]} 55. Bg4 {[%clk 0:00:25]}  Bxa3 {[%clk 0:00:11]} 56. Be2 {[%clk 0:00:26]}  Bc5 {[%clk 0:00:11]} 57. Kf3 {[%clk 0:00:26]}  Kg7 {[%clk 0:00:11]} 58. Ke4 {[%clk 0:00:24]}  Kf6 {[%clk 0:00:11]} 59. Bd3 {[%clk 0:00:24]}  Kg5 {[%clk 0:00:11]} 60. Be2 {[%clk 0:00:24]}  Kh4 {[%clk 0:00:09]} 61. Kf4 {[%clk 0:00:08]}  Bb6 {[%clk 0:00:07]} 62. Bf1 {[%clk 0:00:07]}  Ba5 {[%clk 0:00:07]} 63. Be2 {[%clk 0:00:07]}  Bc3 {[%clk 0:00:06]} 64. Bf1 {[%clk 0:00:06]}  Be5+ {[%clk 0:00:07]} 65. Kf3 {[%clk 0:00:05]}  Kg5 {[%clk 0:00:08]} 66. Ke4 {[%clk 0:00:05]}  Kg4 {[%clk 0:00:08]} 67. Be2+ {[%clk 0:00:03]}  Kg3 {[%clk 0:00:08]} 68. Bh5 {[%clk 0:00:02]}  f6 {[%clk 0:00:08]} 69. Kd3 {[%clk 0:00:02]}  Kf2 {[%clk 0:00:08]} 70. Be8 {[%clk 0:00:02]}  b4 {[%clk 0:00:08]} 71. Kc4 {[%clk 0:00:02]}  a5 {[%clk 0:00:09]} 72. Kd3 {[%clk 0:00:01]}  b3 {[%clk 0:00:08]} 0-1


[Site "https://www.chess.com"]